Cogmind - Beta 11.2 @@@ ROGUE MODE // 2023.02.14 @ 07:43:41 // Winter2022/Polymind Player: ArabianSandBoa Result: Destroyed by G-34 Mercenary with Small Laser Performance ------------- Evolutions (1) 500 Regions Visited (3) 600 Robots Destroyed (73) 365 Value Destroyed (2294) 2294 Prototype IDs (0) 0 Alien Tech Used (0) 0 Bonus (3064) 3064 TOTAL SCORE: 6423 Bonus ------- Polymind Skill 2782 High Alert Combat Kills 282 Cogmind --------- Core Integrity 0/400 Matter 76/100 Energy 215/215 System Corruption 0% Temperature Cool (36) Movement Treading (160) Location -9/Materials Parts ------- > --- POWER (1) -------- Improved Ion Engine > --- PROPULSION (2) --- Light Treads Light Treads > --- UTILITY (3) ------ Heat Sink Heat Sink Light Armor Plating > --- WEAPON (2) ------- Beam Rifle Heavy Assault Rifle > --- INVENTORY (1) ---- (None) Peak State ------------ > --- POWER ------------ Improved Ion Engine > --- PROPULSION ------- Light Treads Light Treads > --- UTILITY ---------- Heat Sink Heat Sink Light Armor Plating > --- WEAPON ----------- Beam Rifle Heavy Assault Rifle > --- INVENTORY -------- (None) [Rating: 11] Favorites ----------- Power Improved Ion Engine Engine Improved Ion Engine Power Core Light Nuclear Core Propulsion Light Treads Treads Light Treads Leg Aluminum Leg Wheel Wheel Utility Heat Sink Device Heat Sink Storage Medium Matter Pod Protection Light Armor Plating Weapon Heavy Assault Rifle Energy Gun Beam Rifle Ballistic Gun Heavy Assault Rifle Build | -11 -10 -10 -9 ------- Run | Scr Mat Min Mat Slots Evolved . | . . . . Power . | . . . . Propulsion . | . . . . Utility . | . . . . Weapon . | . . . . Parts Attached . | . . . . Power . | . . . . Engine . | . . . . Core . | . . . . Reactor . | . . . . Propulsion . | . . . . Treads . | . . . . Leg . | . . . . Wheel . | . . . . Hover . | . . . . Flight . | . . . . Utility . | . . . . Device . | . . . . Storage . | . . . . Processor . | . . . . Hackware . | . . . . Protection . | . . . . Artifact . | . . . . Weapon . | . . . . Energy Gun . | . . . . Energy Cannon . | . . . . Ballistic Gun . | . . . . Ballistic Cannon . | . . . . Launcher . | . . . . Special Weapon . | . . . . Impact Weapon . | . . . . Slashing Weapon . | . . . . Piercing Weapon . | . . . . Special Melee Weapon . | . . . . Unidentified Prototypes . | . . . . Parts Lost 15 | . 2 1 12 Power 2 | . . . 2 Propulsion 5 | . 1 . 4 Utility 4 | . . 1 3 Weapon 4 | . 1 . 3 Highest Loss Streak 4 | . 1 1 4 To Critical Strikes . | . . . . Average Slot Usage (%) 91 | . 98 99 83 Engine 11 | . 13 14 9 Core 2 | . 6 . . Treads 12 | . . 17 20 Leg 14 | . 37 11 . Wheel 1 | . 3 . . Device 20 | . 18 23 21 Protection 5 | . . 8 7 Energy Gun 13 | . 17 14 11 Ballistic Gun 7 | . . 8 11 Naked Turns 3 | . 2 . 1 Heaviest Build 18 | 5 9 18 18 Greatest Support 40 | 20 20 40 40 Greatest Overweight (x) 4 | . . . 4 Average Overweight (x) . | . . . . Largest Inventory Capacity 1 | . 1 1 1 Average Capacity . | . . 1 . Most Carried . | . . . . Average Carried . | . . . . Final Capacity 1 | 1 1 1 1 Final Carried . | . . . . Class Distribution -------------------- 60% | Sentry 37% | Grunt Dominant Class ---------------- Grunt | -10/Materials Sentry | -10/Mines Sentry | -9/Materials Resources | -11 -10 -10 -9 ----------- Run | Scr Mat Min Mat Matter Collected 302 | . . 55 247 Remotely . | . . . . Salvage Created 2196 | . 387 343 1466 Parts 156 | . 42 21 93 Haulers Intercepted 1 | . 1 . . Recyclers Shooed 1 | . . . 1 Parts Field Recycled . | . . . . Retrieved Matter . | . . . . Parts Self-Destructed . | . . . . Prevented . | . . . . Kills | -11 -10 -10 -9 ------- Run | Scr Mat Min Mat Combat Hostiles Destroyed 61 | . 16 8 37 Melee 1 | . 1 . . Guns 58 | . 13 8 37 AOE 1 | . 1 . . Classes Destroyed 10 | . 6 2 2 Worker 4 | . 3 . 1 Builder 4 | . . 1 3 Tunneler 2 | . 1 1 . Hauler 1 | . 1 . . Watcher 4 | . 1 . 3 Swarmer 9 | . 6 . 3 Grunt 42 | . 10 7 25 Duelist 3 | . . . 3 Protector 1 | . . . 1 Sentry 6 | . . 1 5 Best Kill Streak 6 | . 3 3 6 Combat Bots Only 5 | . 2 2 5 Max Kills in Single Turn 3 | . 3 1 2 Gunslinging 1 | . . . 1 Exploded 1 | . 1 . . Melee 1 | . 1 . . Uniques/NPCs Destroyed . | . . . . Combat | -11 -10 -10 -9 -------- Run | Scr Mat Min Mat Damage Taken 2914 | . 617 279 2018 Core 614 | . 184 29 401 Absorbed by Shields . | . . . . Core Remaining (%) 57 | 100 . 14 . Volleys Fired 264 | . 122 20 122 Largest 2 | . 1 2 2 Hottest 79 | . 65 79 79 Shots Fired 396 | . 122 40 234 Gun 396 | . 122 40 234 Cannon . | . . . . Launcher . | . . . . Special . | . . . . Kinetic 137 | . . 20 117 Thermal 259 | . 122 20 117 Explosive . | . . . . Electromagnetic . | . . . . Robot Hit Streak 15 | . 10 12 15 Robot Miss Streak 5 | . 5 1 2 Penetration Max . | . . . . Secondary Targets 8 | . . 2 6 Max Gunslinging Chain 1 | . . 1 1 Shots Hit Robots 264 | . 74 33 157 Core Hits 119 | . 35 17 67 Critical Kills . | . . . . Critical Parts Destroyed 2 | . . . 2 Critical Strikes 9 | . 2 . 7 Burn 7 | . 2 . 5 Destroy 2 | . . . 2 Melee Attacks . | . . . . Impact . | . . . . Slashing . | . . . . Piercing . | . . . . Sneak Attacks . | . . . . Combat Hostiles . | . . . . Follow-up Attacks . | . . . . Damage Inflicted 4175 | . 1119 509 2547 Guns 4019 | . 1005 509 2505 Cannons . | . . . . Explosions 154 | . 112 . 42 Melee . | . . . . Ramming 2 | . 2 . . Kinetic 1349 | . . 213 1136 Thermal 2670 | . 1005 296 1369 Explosive 42 | . . . 42 Electromagnetic 112 | . 112 . . Impact . | . . . . Slashing . | . . . . Piercing . | . . . . Highest Corruption . | . . . . Average Corruption . | . . . . Corruption Purged . | . . . . Corruption Blocked . | . . . . Overload Shots . | . . . . Overflow Damage . | . . . . Projectiles . | . . . . Explosions . | . . . . Melee . | . . . . Knockbacks . | . . . . Impact . | . . . . Kinetic . | . . . . Secondary . | . . . . Self-Inflicted Damage . | . . . . Shots . | . . . . Rammed . | . . . . Targets Rammed 1 | . 1 . . Kicked 1 | . 1 . . Crushed . | . . . . Highest Temperature 189 | . 59 59 189 Average Temperature 37 | . 23 18 47 Received Heat Transfer 1188 | . 264 171 753 Siege Activations . | . . . . Robots Corrupted . | . . . . Combat Hostiles . | . . . . Parts Fried . | . . . . Impact Corruptions . | . . . . Robots Melted 1 | . 1 . . Combat Hostiles 1 | . 1 . . Parts Melted 6 | . 6 . . Heat Transferred 6569 | . 2397 703 3469 Parts Sabotaged . | . . . . Parts Stolen . | . . . . Parts Stripped . | . . . . Power Chain Reactions . | . . . . Missiles Intercepted . | . . . . Alert | -11 -10 -10 -9 ------- Run | Scr Mat Min Mat Peak Influence 663 | . 554 283 663 Initial 155 | . . 155 74 Average 355 | . 366 159 450 Maximum Alert Level 2 | . 2 1 2 Low Security (%) 25 | 100 15 76 7 Level 1 18 | . 30 23 9 Level 2 55 | . 54 . 82 Level 3 . | . . . . Level 4 . | . . . . Level 5 . | . . . . High Security . | . . . . Max Security . | . . . . Squads Dispatched 15 | . 6 . 9 Investigation 11 | . 5 . 6 Extermination . | . . . . Reinforcement 2 | . 1 . 1 Assault 2 | . . . 2 Garrison . | . . . . Intercept . | . . . . Searches Triggered . | . . . . Construction Impeded . | . . . . Haulers Reinforced . | . . . . Active Scanning Responses . | . . . . Cargo Convoy Interrupts . | . . . . Stealth | -11 -10 -10 -9 --------- Run | Scr Mat Min Mat Distress Signals 5 | . 3 . 2 Communications Jammed . | . . . . Distress Signals . | . . . . Times Spotted 99 | . 38 8 53 Peak Tracking Total 7 | . 4 2 7 Tactical Retreats 5 | . 3 . 2 Traps | -11 -10 -10 -9 ------- Run | Scr Mat Min Mat Traps Triggered 1 | . . . 1 Indirectly . | . . . . Trap Hack Attempts . | . . . . Triggered . | . . . . Disarmed . | . . . . Reprogrammed 1 | . 1 . . Reused . | . . . . Traps Extracted . | . . . . Installed . | . . . . Triggered . | . . . . Machines | -11 -10 -10 -9 ---------- Run | Scr Mat Min Mat Machines Disabled 8 | . 2 1 5 Max in Single Turn 2 | . 2 1 2 Machines Sabotaged 3 | . 3 . . Garrisons Compromised . | . . . . Overloaded Fab Kills . | . . . . Hacking | -11 -10 -10 -9 --------- Run | Scr Mat Min Mat Machines Accessed 17 | . 8 . 9 Terminals 11 | . 6 . 5 Fabricators . | . . . . Repair Stations 1 | . . . 1 Recycling Units 3 | . 2 . 1 Scanalyzers 2 | . . . 2 Garrison Access . | . . . . Total Hacks 55 | . 25 . 30 Successful 34 | . 16 . 18 Failed 21 | . 9 . 12 Catastrophic 3 | . 2 . 1 Database Lockouts . | . . . . Manual 47 | . 21 . 26 Terminals 48 | . 23 . 25 Fabricators . | . . . . Repair Stations 1 | . . . 1 Recycling Units 4 | . 2 . 2 Scanalyzers 2 | . . . 2 Garrison Access . | . . . . Terminal Hacks 11 | . 3 . 8 Robot Analysis 6 | . 2 . 4 Emergency Access Points 1 | . . . 1 Alert Level 1 | . . . 1 Unreport Threat 1 | . . . 1 Reprogram Traps 2 | . 1 . 1 Fabricator Hacks . | . . . . Repair Station Hacks 1 | . . . 1 Refit 1 | . . . 1 Recycling Unit Hacks . | . . . . Scanalyzer . | . . . . Garrison Access Hacks . | . . . . Unauthorized Hacks 22 | . 13 . 9 Terminals 17 | . 11 . 6 Botnet 11 | . 6 . 5 Detonate 3 | . 2 . 1 Sabotage 3 | . 3 . . Fabricators . | . . . . Repair Stations . | . . . . Recycling Units 3 | . 2 . 1 Tunnel 3 | . 2 . 1 Scanalyzers 2 | . . . 2 Extract 2 | . . . 2 Garrison Access . | . . . . Data Cores Recovered . | . . . . Used . | . . . . Hacking Detections 9 | . 4 . 5 Full Trace Events 8 | . 3 . 5 Feedback Events . | . . . . Feedback Blocked . | . . . . Robot Schematics Acquired . | . . . . Robots Built . | . . . . Authchips . | . . . . Time . | . . . . Total Robot Build Rating . | . . . . Part Schematics Acquired 5 | . . . 5 Parts Built . | . . . . Authchips . | . . . . Time . | . . . . Total Part Build Rating . | . . . . Parts Repaired . | . . . . Time . | . . . . Parts Recycled . | . . . . Recycled Matter . | . . . . Retrieved Matter . | . . . . Retrieved Components . | . . . . Parts Scanalyzed . | . . . . Part Schematics Acquired . | . . . . Parts Damaged . | . . . . Bothacking | -11 -10 -10 -9 ------------ Run | Scr Mat Min Mat Used RIF Installer . | . . . . Robots Hacked 6 | . 2 1 3 Non-combat . | . . . . Combat 6 | . 2 1 3 Robot Hacks Applied 6 | . 2 1 3 find_shortcuts 6 | . 2 1 3 Relay Couplers Released . | . . . . Fabnet Peak Effective % . | . . . . Robots Rewired . | . . . . Allies Hacked . | . . . . Hacks Repelled . | . . . . Allies | -11 -10 -10 -9 -------- Run | Scr Mat Min Mat Total Allies . | . . . . Largest Group . | . . . . Highest-Rated Group . | . . . . Highest-Rated Ally . | . . . . Total Orders . | . . . . Ally Attacks . | . . . . Total Damage . | . . . . Kills . | . . . . Allies Corrupted . | . . . . Allies Melted . | . . . . Intel | -11 -10 -10 -9 ------- Run | Scr Mat Min Mat Robot Analysis Total 9 | 1 4 1 3 Derelict Logs Recovered 2 | . . 2 . Drone Launches . | . . . . Drone Recoveries . | . . . . Exploration | -11 -10 -10 -9 ------------- Run | Scr Mat Min Mat Turns Passed 4011 | 108 1332 760 1811 Spaces Moved 1700 | 18 840 464 378 Core 116 | 17 1 . 98 Treads 566 | . . 286 280 Legs 926 | . 748 178 . Wheels 92 | 1 91 . . Hover . | . . . . Flight . | . . . . Fastest Speed 50 | 50 50 120 50 Average Speed 134 | 51 115 144 169 Slowest Speed 250 | 80 120 160 250 Overloaded Moves . | . . . . Propulsion Burnouts . | . . . . Robots Hopped . | . . . . Cave-ins Triggered . | . . . . Exploration Rate (%) 59 | 4 96 99 40 Regions Visited 3 Branch Regions 1 Pre-discovered Areas 5 | . 2 2 1 Known Exits Taken . | . . . . Unknown Exits Taken 3 | 1 1 1 . Scrap Searched 1 | . . 1 . Spaces Dug . | . . . . Terrain Destroyed 16 | . . . 16 Melee . | . . . . Projectile . | . . . . AOE 16 | . . . 16 Terrain Rammed . | . . . . Walls Destroyed . | . . . . Machines Disabled . | . . . . Actions | -11 -10 -10 -9 --------- Run | Scr Mat Min Mat Total 3024 | 116 1079 513 1316 Wait 1062 | 99 117 30 816 Move 1697 | 17 839 463 378 Hop . | . . . . Pick Up . | . . . . Fast Attach . | . . . . Attach . | . . . . Detach . | . . . . Swap . | . . . . Drop . | . . . . Fire 264 | . 122 20 122 Melee . | . . . . Ram . | . . . . Kick 1 | . 1 . . Crush . | . . . . Escape Stasis . | . . . . Rewire . | . . . . Trap . | . . . . Miscellaneous . | . . . . Route ------- -11/Scrapyard -10/Materials (discovered 5 exits: *Mat x3 / [*Min x2]) -10/Mines (discovered 2 exits: *Mat x2) -9/Materials (discovered 1 exit: [*Min]) History --------- Turn | Location | Event 3 | -11/Scrapyard | Discovered new exit (range 15) 109 | -11/Scrapyard | Entered Materials 285 | -10/Materials | Discovered new exit (range 9) 463 | -10/Materials | Discovered new exit (range 11) 768 | -10/Materials | Discovered new exit (range 4) 803 | -10/Materials | Discovered new exit (range 14) 1078 | -10/Materials | Discovered new exit (range 16) 1159 | -10/Materials | Core integrity fell below 50% 1441 | -10/Materials | Entered Mines 1488 | -10/Mines | Learned location of Zion (-6) 1515 | -10/Mines | A weapon hastily lodged in a ceiling crevice suddenly fell to the ground 1523 | -10/Mines | Discovered new exit (range 15) 1817 | -10/Mines | Learned location of Storage (-7) 2057 | -10/Mines | Core integrity fell below 20% 2128 | -10/Mines | Discovered new exit (range 9) 2201 | -10/Mines | Entered Materials 2996 | -9/Materials | Core integrity fell below 50% 3401 | -9/Materials | First assault squad dispatched 3834 | -9/Materials | Discovered new exit (range 16) 3876 | -9/Materials | Core integrity fell below 20% 3919 | -9/Materials | Lost 4 parts (2n1u1w) 4012 | -9/Materials | Destroyed by G-34 Mercenary with Small Laser Last Messages --------------- 03892_ Acquired 25 Protomatter. 03893_ Acquired 13 matter. 03896_ Connecting with Scanalyzer... >>Force(Extract) EXTRACTED[Grenade Launcher] EXTRACTED[Shotgun] EXTRACTED[ECM Suite] 03896_ ALERT: Suspicious activity at Scanalyzer M002. Dispatching Investigation squad. 03922_ Released control of Y-45 Defender. 03923_ Took control of Y-45 Defender. 03926_ Y-45 Defender destroyed. 03929_ Acquired 14 Protomatter. 03961_ Connecting with Scanalyzer... >>Force(Extract) EXTRACTED[Imp. Hover Unit] EXTRACTED[Structural Scanner] 03961_ ALERT: Suspicious activity at Scanalyzer M001. Dispatching Investigation squad. 04004_ G-34 Mercenary destroyed. Map ----- +----------------------------------------------------+ | ????????????? ###### | | ?????????????? " " | | ????????????? "R" | | ?????????????? """ % | | ?????????????? ########### ## | | ?????????????????????????# #? | | ?????????????????????????###### #? | | ??????????????????????????????# ! #? | | ??????????????????????????????# =/= #? | | ??????????????????????????????########+######? | | ????????????????????????????????# % [ #? | | ????????????????????????????????# % #? | | ????????????????????????????????# #? | | ????????????????????#########???# "S """ #? | | ????????????????????# =##### """ """ #? | | ????????????????????# "S %[+ t "" """ #? | | ????????????????????# """ =%# # #? | | ????????????????????# "" *# it#############? | | ????????????????????# # #?????? | | ????????????????????# ]]] g #?????? | | ????????????????????# ]] # #?????? | | ????????????????????# ]] ####+### #?????? | | ????????????????????# #???????? #?????? | | ????????????????????# #????????? #?????? | | ????????????????????# #??????????#?????? | | ????????????????????#Y#######????????????????? | | ????????????????????###??????????????????????? | | ?????????????????????????????????????????????? | | ?????????????????????????????????????????????? | | ?????????????????????????????????????????????? | | ?????????????????????????????????????????????? | | ?????????????????????????????????????????????? | | ?????????????????????????????????????????????? | | ?????????????????????????????????????????????? | | ?????????????????????????????????????????????? | | ?????????????????????????????????????????????? | | ?????????????????????????????????????????????? | | ?????????????????????????????????????????????? | | ?????????????????????????????????????????????? | | ?????????????????????????????????????????????? | | ?????????????????????????????????????????????? | | ?????????????????????????????????????????????? | | ?????????????????????????????????????????????? | | ?????????????????????????????????????????????? | | ?????????????????????????????????????????????? | | ?????????????????????????????????????????????? | | ?????????????????????????????????????????????? | | ?????????????????????????????????????????????? | | ?????????????????????????????????????????????? | | ?????????????????????????????????????????????? | +----------------------------------------------------+ Best States ------------- Heat Dissipation 40 Energy Generation 19 Energy Capacity 215 Matter Stores 100 Matter Capacity 100 Sight Range 16 Terrain Scan Density 10 Armor Coverage 150 Resistance: EX 50 Resistance: I 25 Evasion (%) 55 Recoil Reduction 2 Item Schematics ----------------- Grenade Launcher | -9/Materials | Extracted Shotgun | -9/Materials | Extracted ECM Suite | -9/Materials | Extracted Imp. Hover Unit | -9/Materials | Extracted Structural Scanner | -9/Materials | Extracted Robot Schematics ------------------ None Fabricated ------------ Nothing Alien Tech Used ----------------- None Achievements -------------- None Challenges ------------ None Polymind | -11 -10 -10 -9 ---------- Run | Scr Mat Min Mat Hosts 7 | 1 2 1 3 Combat Hostiles 6 | . 2 1 3 Allies . | . . . . Unique Host Classes 3 | 1 1 1 . Average Host Suspicion 88 | . 94 81 87 Unsuspicious Activity 744 | 2 42 . 700 Returns to Shadow 1 | . . . 1 Fuzzy Dispatches 2 | . . . 2 Protomatter Created 309 | . 99 53 157 Used 142 | 5 45 23 69 Decayed 30 | . 18 . 12 Highest Spend 30 | 5 30 23 23 Top 5 Hosts by Kills: Y-45 Defender (-10/Mines: 23) Y-45 Defender (-9/Materials: 12) G-47 Trooper (-10/Materials: 10) Y-45 Defender (-9/Materials: 7) G-34 Mercenary (-10/Materials: 6) Game ------ Seed AutogunBlastClaymores Manual? 0 Play Time 00:24:26 Cumulative 312.7 hours Start 2023.02.14 @ 07:21:42 End 2023.02.14 @ 07:43:41 Sessions 1 Manual Loads 0 Difficulty Rogue Special Mode Winter2022/Polymind Game No. 383 Rogue 383 Adventurer 0 Explorer 0 Win Type - Total 0 Types 0/0/0/0/0/0/0/0/0 Lore% 46 Gallery% 72 Achievement% 60 Wizard Run 0 Options --------- ASCII 0 Keyboard 0 Movement Mouse Keybinds 0 Fullscreen 2 Font 24/Smallcaps Map View 76x50 Tactical HUD 1 Map Filters NONE Filters NONE Steam 1 RUN: 612a465c-1e2c-4cf2-a737-a4323b63edc8